bitfinex-derivatives/quotes_BTCF0:USTF0_20250411
["timestamp","ask_amount","ask_price","bid_price","bid_amount"]
[1744396320764,0.2021714,83953.0,83952.0,0.27588073]
[1744396320969,0.2021714,83953.0,83952.0,0.23498073]
[1744396321178,0.2021714,83953.0,83952.0,0.11580933]
[1744396321368,0.1191728,83952.0,83951.0,0.00476466]
[1744396321976,0.2397728,83952.0,83951.0,0.00476466]
[1744396327879,0.1191828,83945.0,83944.0,0.00017866]
[1744396328182,0.1788054,83931.0,83930.0,0.1788055]
[1744396329272,0.1788054,83931.0,83930.0,0.2198055]
[1744396329677,0.2643054,83931.0,83930.0,0.2198055]
[1744396330171,0.1451013,83931.0,83930.0,0.2198055]
[1744396330679,0.0855,83931.0,83930.0,0.2627055]
[1744396330869,0.36084,83953.0,83938.0,0.1191927]
[1744396331075,4e-05,83953.0,83952.0,0.1191728]
[1744396331270,0.2700044,83970.0,83956.0,0.0595831]
[1744396331477,0.2700044,83970.0,83965.0,0.1191544]
[1744396331673,0.1191509,83968.0,83965.0,0.1191544]
[1744396331884,0.1241529,83966.0,83965.0,0.2039544]
[1744396332473,0.1241529,83966.0,83965.0,0.1610544]
[1744396332672,0.04884,83966.0,83965.0,0.1610544]
[1744396332875,0.00504,83966.0,83965.0,0.2031544]
[1744396333270,0.3608,83987.0,83965.0,0.2031544]
[1744396333271,0.1241164,83992.0,83973.0,0.119143]
[1744396333471,0.005,83992.0,83991.0,0.1191175]
[1744396333680,0.1241161,83992.0,83991.0,0.1191175]
[1744396333873,0.2117161,83992.0,83991.0,0.1191175]
[1744396334070,0.2117561,83992.0,83991.0,0.1191175]
[1744396334270,0.2117561,83992.0,83991.0,0.2036175]
[1744396334880,0.1786861,83988.0,83987.0,0.1191229]
[1744396335075,0.1191274,83984.0,83983.0,0.00017866]
[1744396335876,0.1191274,83984.0,83983.0,0.11930746]
[1744396336582,0.1191674,83984.0,83983.0,0.11930746]
[1744396336779,0.1191274,83984.0,83983.0,0.20360746]
[1744396336984,0.1191674,83984.0,83983.0,0.16050746]
[1744396337688,0.1191674,83984.0,83983.0,0.04137866]
[1744396337991,0.1191674,83984.0,83983.0,0.16050746]
[1744396338882,0.1191674,83984.0,83983.0,0.00017866]
[1744396339487,0.2018674,83984.0,83983.0,0.00017866]
[1744396339782,0.119143,83973.0,83972.0,0.1603444]
[1744396340684,0.1191487,83969.0,83968.0,0.04872605]
[1744396340887,0.1191487,83969.0,83968.0,0.00902605]
[1744396341084,0.1191544,83965.0,83964.0,0.00017866]
[1744396341290,0.4799544,83965.0,83964.0,0.00017866]
[1744396342085,0.4799544,83965.0,83964.0,6e-08]
[1744396342283,0.7299544,83965.0,83964.0,6e-08]
[1744396342586,0.4799544,83965.0,83964.0,6e-08]
[1744396343389,0.4799944,83965.0,83964.0,6e-08]
[1744396343886,0.48899722,83965.0,83964.0,6e-08]
[1744396344089,0.4799944,83965.0,83964.0,6e-08]
[1744396344287,0.4799544,83965.0,83964.0,0.11915586]
[1744396344493,0.4799944,83965.0,83964.0,6e-08]
[1744396345291,0.4799944,83965.0,83964.0,0.11915586]
[1744396346395,0.4799544,83965.0,83964.0,0.11915586]
[1744396346597,0.4799944,83965.0,83964.0,0.11915586]
[1744396346794,0.4799944,83965.0,83964.0,0.08560006]
[1744396346795,0.5199944,83965.0,83964.0,0.08560006]
[1744396346992,0.5199944,83965.0,83964.0,6e-08]
[1744396347191,0.5977944,83965.0,83964.0,6e-08]
[1744396350400,0.8477944,83965.0,83964.0,6e-08]
[1744396350595,1.2663944,83965.0,83964.0,6e-08]
[1744396350897,0.1191728,83952.0,83951.0,6e-08]
[1744396351099,0.1191969,83935.0,83921.0,0.42597438]
[1744396351289,0.4799969,83935.0,83921.0,0.42597438]
[1744396351489,0.4799969,83935.0,83934.0,0.40255974]
[1744396351897,0.5209969,83935.0,83934.0,0.40255974]
[1744396352199,0.5210369,83935.0,83934.0,0.1191984]
[1744396354487,0.1602369,83935.0,83934.0,0.1191984]
[1744396354688,4e-05,83935.0,83934.0,0.1191984]
[1744396354898,0.2772867,83942.0,83941.0,0.1191884]
[1744396355186,0.098494,83942.0,83941.0,0.1191884]
[1744396355596,0.098534,83942.0,83941.0,0.1191884]
[1744396355790,0.098534,83942.0,83941.0,0.2004884]
[1744396356188,4e-05,83942.0,83941.0,0.2004884]
[1744396356596,0.119227,83942.0,83941.0,0.2004884]
[1744396357096,4e-05,83942.0,83941.0,0.2004884]
[1744396357300,0.00017866,83943.0,83942.0,0.119187]
[1744396357497,0.00017866,83943.0,83942.0,0.22065613]
[1744396358100,0.00017866,83943.0,83942.0,0.2206785]
[1744396358400,0.00017866,83943.0,83942.0,0.22067954]
[1744396359590,0.00017866,83943.0,83942.0,0.22069733]
[1744396360103,0.11936426,83943.0,83942.0,0.1778941]
[1744396360400,0.11936426,83943.0,83940.0,0.0401]
[1744396360401,0.1191884,83941.0,83940.0,0.159288]
[1744396360887,0.1988884,83941.0,83940.0,0.159288]
[1744396361087,0.0405,83941.0,83940.0,0.520088]
[1744396361400,0.00017866,83943.0,83942.0,0.119187]
[1744396361598,0.11936426,83943.0,83942.0,0.2183308]
[1744396361898,0.11936426,83943.0,83942.0,0.0404]
[1744396362093,0.1787819,83942.0,83941.0,0.1191876]
[1744396362288,0.1192012,83932.0,83931.0,0.5396004]
[1744396362595,0.1192012,83932.0,83931.0,0.1788004]
[1744396362798,0.1192012,83932.0,83931.0,0.19568466]
[1744396362996,0.1192012,83932.0,83931.0,0.19568555]
[1744396363698,0.1597012,83932.0,83931.0,0.1788004]
[1744396363901,0.1597012,83932.0,83931.0,0.238401]
[1744396364404,0.1984012,83932.0,83931.0,0.25521857]
[1744396364891,0.1984012,83932.0,83931.0,0.25511636]
[1744396366211,0.1192381,83906.0,83869.0,0.3608]
[1744396366502,0.1192453,83901.0,83884.0,0.0596341]
[1744396366701,0.1192453,83901.0,83890.0,0.0596302]
[1744396366902,0.1192853,83901.0,83891.0,0.0596296]
[1744396367210,0.1192853,83901.0,83900.0,0.2192467]
[1744396367403,0.1192853,83901.0,83900.0,0.1]
[1744396367602,0.1192853,83901.0,83900.0,0.2192467]
[1744396368610,0.1192853,83901.0,83900.0,0.2586467]
[1744396368803,0.1192453,83901.0,83900.0,0.2586467]
[1744396369003,0.1192853,83901.0,83900.0,0.2586467]
[1744396369404,0.1192853,83901.0,83900.0,0.27425171]
[1744396369904,0.2023853,83901.0,83900.0,0.27425171]
[1744396371815,0.3608,83906.0,83905.0,0.1192396]
[1744396372309,0.3608,83906.0,83905.0,0.3692396]
[1744396372509,0.36084,83906.0,83905.0,0.3692396]
[1744396372710,0.36084,83906.0,83905.0,0.42356161]
[1744396373011,0.4800781,83906.0,83905.0,0.17356161]
[1744396373211,0.4800781,83906.0,83905.0,0.1617396]
[1744396373710,0.4800781,83906.0,83905.0,0.17734461]
[1744396374109,0.36084,83906.0,83905.0,0.17734461]
[1744396374708,0.4800781,83906.0,83905.0,0.17734461]
[1744396375507,0.4800781,83906.0,83905.0,0.21774461]
[1744396376814,0.36084,83906.0,83905.0,0.21774461]
[1744396377820,0.36084,83906.0,83905.0,0.46774461]
[1744396378113,0.4204106,83920.0,83919.0,0.1192197]
[1744396378308,0.4204106,83920.0,83919.0,0.13482471]
[1744396378617,0.0596506,83920.0,83919.0,0.13482471]
[1744396379021,0.0596506,83920.0,83919.0,0.17742471]
[1744396380205,0.1436506,83920.0,83919.0,0.17742471]
[1744396380714,4e-05,83920.0,83919.0,0.21852471]
[1744396381013,0.1192143,83923.0,83922.0,0.2384266]
[1744396381217,0.4204057,83925.0,83924.0,0.1192126]
[1744396381413,0.00017877,83928.0,83927.0,0.1192083]
[1744396381715,0.00017877,83928.0,83927.0,0.17562675]
[1744396381904,0.00017877,83928.0,83927.0,0.21822675]
[1744396382105,0.00021877,83928.0,83927.0,0.23383176]
[1744396382510,0.00017877,83928.0,83927.0,0.23383176]
[1744396382706,0.00021877,83928.0,83927.0,0.23383176]
[1744396384011,0.00021877,83928.0,83927.0,0.24276432]
[1744396384219,7e-08,83928.0,83927.0,0.90806432]
[1744396384518,0.005,83940.0,83939.0,0.1191913]
[1744396384717,0.005,83940.0,83939.0,0.13590975]
[1744396384917,0.1781244,83950.0,83949.0,0.1191771]
[1744396385219,0.0892289,83950.0,83949.0,0.13589555]
[1744396385419,0.2135566,83956.0,83955.0,0.1191686]
[1744396385716,0.1744803,83956.0,83955.0,0.15167014]
[1744396386317,4e-08,83967.0,83966.0,0.1191529]
[1744396386517,0.31161041,83978.0,83977.0,0.1191373]
[1744396386713,0.35174496,83984.0,83977.0,0.1191373]
[1744396386714,0.35174496,83984.0,83983.0,0.1191288]
[1744396386913,0.35174496,83984.0,83983.0,0.13602533]
[1744396387117,0.35178496,83984.0,83983.0,0.15135424]
[1744396387420,0.14203826,83984.0,83983.0,0.15135424]
[1744396387624,0.14207826,83984.0,83983.0,0.19105424]
[1744396387828,0.14207826,83984.0,83983.0,0.17443381]
[1744396389428,0.14203826,83984.0,83983.0,0.17443381]
[1744396389621,0.14207826,83984.0,83983.0,0.21483381]
[1744396389818,0.1191674,83984.0,83983.0,0.01560501]
[1744396390621,0.1191288,83983.0,83982.0,0.1191301]
[1744396390814,0.0595657,83982.0,83975.0,0.00017866]
[1744396391019,0.4799388,83976.0,83975.0,0.00017866]
[1744396391219,0.4799388,83976.0,83975.0,0.13498617]
[1744396391819,0.5222388,83976.0,83975.0,0.13498617]
[1744396392014,0.5222388,83976.0,83975.0,0.01584597]
[1744396392925,0.5222388,83976.0,83975.0,0.13498617]
[1744396393625,0.5222788,83976.0,83975.0,0.13498617]
[1744396393824,0.5222388,83976.0,83975.0,0.13498617]
[1744396394020,0.5222788,83976.0,83975.0,0.13498617]
[1744396394722,4e-05,83976.0,83975.0,0.13498617]
[1744396394925,0.3608,83986.0,83985.0,0.119126]
[1744396395225,5.401e-05,83991.0,83990.0,0.1191189]
[1744396395519,0.0595572,83994.0,83990.0,0.1191176]
[1744396395720,0.1191274,83984.0,83983.0,0.0827]
[1744396395925,0.1191274,83984.0,83983.0,0.2018285]
[1744396396125,0.1191274,83984.0,83983.0,0.21749581]
[1744396396312,0.4799274,83984.0,83983.0,0.01566731]
[1744396396517,0.5625274,83984.0,83983.0,0.01566731]
[1744396396917,0.1191388,83976.0,83975.0,0.11931756]
[1744396397120,0.4799388,83976.0,83975.0,0.00017866]
[1744396397826,0.6023388,83976.0,83975.0,0.11931886]
[1744396398425,0.6023388,83976.0,83975.0,0.13543941]
[1744396398727,0.6023388,83976.0,83975.0,0.01629921]
[1744396399215,0.6023388,83976.0,83955.0,0.13131073]
[1744396399216,0.1191671,83956.0,83955.0,0.13131073]
[1744396399927,0.0595784,83964.0,83963.0,0.0595779]
[1744396400131,0.1787415,83964.0,83963.0,0.2191323]
[1744396400425,0.1787815,83964.0,83963.0,0.2191323]
[1744396400618,0.2574815,83964.0,83963.0,0.0999779]
[1744396401719,0.2574815,83964.0,83963.0,0.1405779]
[1744396403330,0.2574815,83964.0,83963.0,0.0404]
[1744396403625,0.1191671,83956.0,83955.0,0.00017866]
[1744396403818,0.4799671,83956.0,83955.0,0.00017866]
[1744396404219,0.4799671,83956.0,83955.0,0.11934726]
[1744396404417,0.5631671,83956.0,83955.0,0.11934726]
[1744396404623,0.5631671,83956.0,83955.0,0.00017866]
[1744396404826,0.5631671,83956.0,83955.0,0.11934726]
[1744396405028,0.5631671,83956.0,83955.0,0.00017866]
[1744396406227,0.1191927,83939.0,83938.0,0.1191923]
[1744396406432,0.1191927,83938.0,83937.0,0.21229618]
[1744396406732,0.2377927,83938.0,83937.0,0.21229618]
[1744396406923,0.1191998,83933.0,83932.0,0.12098797]
[1744396407133,0.1191998,83933.0,83932.0,0.00178707]
[1744396407326,0.1191998,83933.0,83932.0,0.01960515]
[1744396407526,0.4799998,83933.0,83932.0,0.00178707]
[1744396407730,0.1192026,83931.0,83930.0,0.21229618]
[1744396407926,0.1192097,83926.0,83924.0,0.00017866]
[1744396408128,0.5714097,83926.0,83924.0,0.00017866]
[1744396409230,0.5714097,83926.0,83925.0,0.12397733]
[1744396409430,0.5714097,83926.0,83925.0,0.00476613]
[1744396409821,0.5714097,83926.0,83925.0,0.02270465]
[1744396410030,0.5714497,83926.0,83925.0,0.02270465]
[1744396410225,0.5714497,83926.0,83925.0,0.04536613]
[1744396411430,0.5714497,83926.0,83925.0,0.0211329]
[1744396411631,0.1192254,83916.0,83915.0,0.1192241]
[1744396411825,0.1192254,83916.0,83915.0,0.01810999]
[1744396412024,0.1192254,83916.0,83915.0,0.13733539]
[1744396412025,0.1962254,83916.0,83915.0,0.13733539]
[1744396413430,0.1962254,83916.0,83915.0,0.05870999]
[1744396413623,0.1962254,83916.0,83915.0,0.17793539]
[1744396414324,0.1962254,83916.0,83915.0,0.17777149]
[1744396415435,0.11939126,83924.0,83923.0,0.119214]
[1744396415635,0.00017866,83924.0,83923.0,0.13716009]
[1744396416033,0.00021866,83924.0,83923.0,0.53986009]
[1744396416230,0.00021866,83924.0,83923.0,0.21776009]
[1744396417333,0.00017866,83924.0,83923.0,0.21776009]
[1744396418132,0.00021866,83924.0,83923.0,0.21776009]
[1744396418731,0.00017866,83924.0,83923.0,0.21776009]
[1744396419236,0.00021866,83924.0,83923.0,0.21776009]
[1744396419838,5.401e-05,83937.0,83936.0,0.1191955]
[1744396420137,7.291e-05,83945.0,83944.0,0.1191842]
[1744396420340,0.0595844,83955.0,83954.0,0.1787481]
[1744396420542,0.0595844,83955.0,83954.0,0.27989419]
[1744396421137,0.0595844,83955.0,83954.0,0.1427836]
[1744396421331,0.1421844,83955.0,83954.0,0.1427836]
[1744396421538,0.1421844,83955.0,83954.0,0.0407]
[1744396421738,0.0595892,83948.0,83946.0,0.00017866]
[1744396422044,0.5608799,83947.0,83946.0,0.11935996]
[1744396422241,0.5608799,83947.0,83946.0,0.13707764]
[1744396422443,0.55312813,83947.0,83946.0,0.13707764]
[1744396423643,0.55312813,83947.0,83946.0,0.15316206]
[1744396424245,0.55312813,83947.0,83946.0,0.15316592]
[1744396424448,0.55312813,83947.0,83946.0,0.03398462]
[1744396424750,0.55312813,83947.0,83937.0,0.178784]
[1744396424751,0.1787936,83938.0,83937.0,0.178784]
[1744396425138,0.3608,83947.0,83934.0,0.3608]
[1744396425343,0.3608,83963.0,83941.0,0.3608]
[1744396425540,0.3608,83963.0,83962.0,0.1191586]
[1744396425735,0.00017866,83971.0,83965.0,0.1191544]
[1744396425937,0.1191515,83967.0,83965.0,0.1191544]
[1744396426238,0.0595749,83969.0,83965.0,0.1191544]
[1744396426542,0.1191544,83965.0,83964.0,0.0393]
[1744396426741,0.1585544,83965.0,83964.0,0.1584558]
[1744396427039,0.2009544,83965.0,83964.0,0.1584558]
[1744396427446,0.238344,83954.0,83953.0,0.1191714]
[1744396428344,0.1191712,83954.0,83953.0,0.1191714]
[1744396428939,0.1787409,83961.0,83957.0,0.0595825]
[1744396429140,0.0595745,83969.0,83962.0,0.0595789]
[1744396429337,0.1241529,83966.0,83965.0,0.1191544]
[1744396430035,0.1241929,83966.0,83965.0,0.1191544]
[1744396431140,0.1241929,83966.0,83965.0,0.1599544]
[1744396432447,0.00504,83966.0,83965.0,0.1599544]
[1744396433042,0.1241929,83966.0,83965.0,0.1599544]
[1744396434249,0.1241929,83966.0,83965.0,0.0408]
[1744396434555,0.059585,83954.0,83952.0,0.5344714]
[1744396434740,0.059585,83954.0,83953.0,0.1603714]
[1744396435346,0.0417,83958.0,83955.0,0.0595842]
[1744396435551,0.0595814,83959.0,83958.0,0.1191643]
[1744396435937,0.0595814,83959.0,83958.0,0.1591643]
[1744396436144,0.0596214,83959.0,83958.0,0.1591643]
[1744396436737,0.0596214,83959.0,83958.0,0.17530174]
[1744396437141,4e-05,83959.0,83958.0,0.17530174]
[1744396437548,9.842e-05,83969.0,83960.0,0.0595803]
[1744396437750,9.842e-05,83981.0,83977.0,0.1191373]
[1744396437948,9.842e-05,83981.0,83977.0,0.17527474]
[1744396438146,9.842e-05,83981.0,83977.0,0.21437474]
[1744396438449,0.1786945,83983.0,83982.0,0.1191302]
[1744396438649,0.119122,83988.0,83987.0,0.1191217]
[1744396438955,0.119162,83988.0,83987.0,0.1191217]
[1744396439153,0.200962,83988.0,83987.0,0.1191217]
[1744396439653,0.119162,83988.0,83987.0,0.1191217]
[1744396439850,0.197162,83988.0,83987.0,0.1191217]
[1744396440255,4e-05,83988.0,83987.0,0.1191217]
[1744396440553,0.005,83992.0,83991.0,0.1191175]
[1744396440748,0.005,83992.0,83991.0,0.13533055]
[1744396441744,0.00504,83992.0,83991.0,0.13533055]
[1744396441943,0.00504,83992.0,83991.0,0.1191175]
[1744396442757,0.1241561,83992.0,83991.0,0.1191175]
[1744396443148,0.00504,83992.0,83991.0,0.1191175]
[1744396443353,0.005,83992.0,83991.0,0.1605175]
[1744396443652,0.00504,83992.0,83991.0,0.1605175]
[1744396444349,0.005,83992.0,83991.0,0.1605175]
[1744396444553,0.04314,83992.0,83991.0,0.1605175]
[1744396448160,0.08454,83992.0,83991.0,0.1605175]
[1744396448547,0.08454,83992.0,83989.0,0.1191199]
[1744396448746,0.1191217,83990.0,83989.0,0.1786793]
[1744396448949,0.1191217,83990.0,83989.0,0.2382391]
[1744396449155,0.1963217,83990.0,83989.0,0.2382391]
[1744396450762,0.1963217,83990.0,83989.0,0.1191192]
[1744396450960,0.5571217,83990.0,83989.0,0.1191192]
[1744396451256,0.1787053,83978.0,83977.0,0.0595681]
[1744396451461,0.1191402,83975.0,83973.0,0.00958367]
[1744396451947,0.2010402,83975.0,83973.0,0.00958367]
[1744396452148,0.2010402,83975.0,83972.0,0.28292853]
[1744396452352,0.2010402,83975.0,83972.0,0.40207213]
[1744396452566,0.2010402,83975.0,83972.0,0.1191436]
[1744396452755,0.2010402,83975.0,83973.0,0.1191425]
[1744396452955,0.2010402,83975.0,83974.0,0.11932026]
[1744396453158,0.2010402,83975.0,83974.0,0.00017866]
[1744396454461,0.3319,83975.0,83970.0,0.28292853]
[1744396454764,0.1191544,83965.0,83964.0,0.00937262]
[1744396454971,0.1191558,83964.0,83958.0,0.1191636]
[1744396455270,0.1191558,83964.0,83962.0,0.1191574]
[1744396455461,0.1191558,83964.0,83956.0,0.42597438]
[1744396455658,0.1191558,83964.0,83961.0,0.1191597]
[1744396455859,0.1191558,83964.0,83958.0,0.0595819]
[1744396456072,0.1191558,83964.0,83959.0,0.119162]
[1744396456259,0.1191558,83964.0,83961.0,0.1191595]
[1744396456573,0.1191586,83962.0,83961.0,0.1191595]
[1744396456756,0.0405,83963.0,83955.0,0.00017866]
[1744396456962,0.1191671,83956.0,83955.0,0.00017866]
[1744396457364,0.1191728,83952.0,83951.0,0.00476466]
[1744396457968,0.1191898,83940.0,83939.0,0.35497865]
[1744396458161,0.4799898,83940.0,83939.0,0.35497865]
[1744396458357,0.4799898,83940.0,83939.0,0.47416995]
[1744396458863,0.5611898,83940.0,83939.0,0.35497865]
[1744396459268,0.1192026,83931.0,83920.0,0.059609]
[1744396459461,0.4800026,83931.0,83927.0,0.00970052]
[1744396460074,0.4800026,83931.0,83921.0,0.1192163]
[1744396460259,0.5616026,83931.0,83894.0,0.0596269]
[1744396460567,0.5616026,83931.0,83917.0,0.0596108]
[1744396460870,0.5616026,83931.0,83923.0,0.1192131]
[1744396461070,0.1192097,83926.0,83925.0,0.06437153]
[1744396464168,0.09128,83928.0,83925.0,0.06437153]
[1744396464368,0.00017866,83939.0,83931.0,0.0596011]
[1744396464565,0.1788092,83931.0,83930.0,0.059602]
[1744396464965,0.1788092,83931.0,83930.0,0.1788061]
[1744396465364,0.059603,83929.0,83925.0,0.36556613]
[1744396465666,0.1192097,83927.0,83926.0,0.1192093]
[1744396466062,0.1570097,83927.0,83926.0,0.1192093]
[1744396466269,0.1192097,83926.0,83925.0,0.00476613]
[1744396466571,0.1580097,83926.0,83925.0,0.00476613]
[1744396466870,0.1976097,83926.0,83925.0,0.00476613]
[1744396469270,0.1192296,83912.0,83911.0,0.0596153]
[1744396469872,0.0755,83913.0,83893.0,0.3608]
[1744396470078,0.1192453,83902.0,83901.0,0.1192453]
[1744396471471,0.1965453,83902.0,83901.0,0.1192453]
[1744396471772,0.1192453,83901.0,83900.0,0.1]
[1744396472172,0.1965453,83901.0,83900.0,0.1]
[1744396472378,0.0596304,83890.0,83881.0,0.0596368]
[1744396472574,0.2385423,83887.0,83886.0,0.0596318]
[1744396472872,0.11927,83887.0,83886.0,0.0596318]
[1744396473179,0.1789055,83885.0,83884.0,0.1192691]
[1744396473977,0.0596347,83885.0,83884.0,0.12807788]
[1744396474174,0.3608,83890.0,83889.0,0.1192623]
[1744396474372,0.0596296,83892.0,83891.0,0.059629]
[1744396474769,0.0596296,83892.0,83891.0,0.098729]
[1744396475771,0.11943397,83894.0,83893.0,0.1192566]
[1744396478177,0.00017877,83894.0,83893.0,0.1192566]
[1744396478377,0.00017877,83894.0,83893.0,0.1951566]
[1744396478978,0.00017877,83894.0,83893.0,0.5559566]
[1744396479684,0.00021877,83894.0,83893.0,0.5559566]
[1744396479883,0.00017877,83894.0,83893.0,0.5559566]
[1744396480180,0.00021877,83894.0,83893.0,0.5559566]
[1744396481586,0.00021877,83894.0,83893.0,0.8059566]
[1744396482576,0.00021877,83894.0,83893.0,0.5559566]
[1744396482884,5.401e-05,83906.0,83905.0,0.1192396]
[1744396483285,0.0596184,83907.0,83906.0,0.1192339]
[1744396483480,0.0596184,83907.0,83906.0,0.1957339]
[1744396483787,0.1192348,83909.0,83908.0,0.1192339]
[1744396484381,0.3608,83910.0,83909.0,0.1192339]
[1744396485184,0.1242279,83914.0,83913.0,0.1192282]
[1744396485185,0.005,83914.0,83913.0,0.1192282]
[1744396486184,0.00504,83914.0,83913.0,0.1192282]
[1744396488286,0.05966681,83942.0,83913.0,0.25]
[1744396488593,0.17893667,83933.0,83932.0,0.1192012]
[1744396488783,0.1788038,83933.0,83932.0,0.1192012]
[1744396488983,0.1788438,83933.0,83932.0,0.1192012]
[1744396491085,0.1788438,83933.0,83932.0,0.12807076]
[1744396491491,0.1788438,83933.0,83932.0,0.00886956]
[1744396491691,0.2384444,83933.0,83932.0,0.1192012]
[1744396492084,0.2384444,83933.0,83924.0,0.00017877]
[1744396492085,0.1788138,83927.0,83926.0,0.1788064]
[1744396492890,0.2581138,83927.0,83926.0,0.247227]
[1744396493582,0.1389041,83927.0,83926.0,0.247227]
[1744396495993,0.1389441,83927.0,83926.0,0.247227]
[1744396496585,0.1389441,83927.0,83926.0,0.0684201]
[1744396498088,0.1389441,83927.0,83926.0,0.1082201]
[1744396500494,0.1389441,83927.0,83926.0,0.0088159]
[1744396500697,0.1192112,83925.0,83924.0,0.00017877]
[1744396500901,0.059612,83916.0,83910.0,0.47522674]
[1744396501202,0.119231,83911.0,83910.0,0.35599494]
[1744396501795,0.240531,83911.0,83910.0,0.36479038]
[1744396502397,0.240531,83911.0,83910.0,0.12802794]
[1744396502791,0.240571,83911.0,83910.0,0.12802794]
[1744396502985,0.1192381,83906.0,83905.0,0.35599494]
[1744396503495,0.2004381,83906.0,83905.0,0.35599494]
[1744396504095,0.2914781,83906.0,83905.0,0.35599494]
[1744396506288,0.2914781,83906.0,83905.0,0.47523454]
[1744396506599,0.2915181,83906.0,83905.0,0.47523454]
[1744396507003,0.2915181,83906.0,83905.0,0.1192396]
[1744396507297,0.2914781,83906.0,83905.0,0.1192396]
[1744396507491,0.2914781,83906.0,83905.0,0.1584396]
[1744396507686,0.3608,83909.0,83908.0,0.1192353]
[1744396507901,0.3608,83909.0,83907.0,0.0596183]
[1744396507902,0.03839842,83920.0,83915.0,0.1192254]
[1744396508098,9.842e-05,83914.0,83910.0,0.1192313]
[1744396508299,0.0596134,83914.0,83913.0,0.1584282]
[1744396508490,0.178848,83911.0,83910.0,0.1192312]
[1744396508694,0.1788522,83910.0,83909.0,0.1192337]
[1744396508899,0.05978897,83919.0,83909.0,0.1192337]
[1744396508900,0.00025168,83919.0,83918.0,0.1192211]
[1744396509101,0.00013287,83923.0,83922.0,0.1192154]
[1744396509299,9.842e-05,83937.0,83921.0,0.0596084]
[1744396509300,0.1787958,83937.0,83936.0,0.1191913]
[1744396509498,0.17884981,83937.0,83936.0,0.1191913]
[1744396509895,0.21814981,83937.0,83936.0,0.1191913]
[1744396510101,5.401e-05,83937.0,83936.0,0.1191913]
[1744396510404,5.401e-05,83937.0,83936.0,0.1787883]
[1744396510405,0.1191941,83937.0,83936.0,0.1787883]
[1744396510593,4e-05,83937.0,83936.0,0.1787883]
[1744396510900,0.1192341,83937.0,83936.0,0.23017464]
[1744396511701,4e-05,83937.0,83936.0,0.23017464]
[1744396511895,4e-05,83937.0,83936.0,0.59097464]
[1744396512095,0.005,83940.0,83939.0,0.1191913]
[1744396512596,0.00504,83940.0,83939.0,0.3691913]
[1744396512999,0.00504,83940.0,83939.0,0.1191913]
[1744396514101,0.1242298,83940.0,83939.0,0.1191913]
[1744396514603,0.1191941,83937.0,83936.0,0.53138134]
[1744396515107,0.1242313,83940.0,83939.0,0.1191913]
[1744396516004,0.1191941,83937.0,83936.0,0.01008634]
[1744396516208,0.1191955,83936.0,83935.0,0.119196]
[1744396516406,0.1192041,83930.0,83929.0,0.0401]
[1744396516707,0.4800041,83930.0,83929.0,0.1593055]
[1744396518812,0.1192055,83929.0,83928.0,0.00017877]
[1744396519107,0.2002055,83929.0,83928.0,0.00017877]
[1744396519419,0.1192211,83918.0,83910.0,0.35599494]
[1744396519704,0.4800211,83918.0,83911.0,0.1192307]
[1744396519906,0.4800211,83918.0,83910.0,0.35599494]
[1744396520808,0.4800211,83918.0,83913.0,0.119228]
[1744396521007,0.1192325,83910.0,83909.0,0.00017877]
[1744396521207,0.4800325,83910.0,83909.0,0.00017877]
[1744396521799,0.5617325,83910.0,83909.0,0.00017877]
[1744396522007,0.5617325,83910.0,83909.0,7e-08]
[1744396522008,1.2303325,83910.0,83909.0,7e-08]
[1744396522206,0.1192467,83900.0,83899.0,1e-08]
[1744396522407,0.9896867,83900.0,83899.0,1e-08]
[1744396523006,1.0713867,83900.0,83899.0,1e-08]
[1744396523807,0.9803867,83900.0,83899.0,0.11924811]
[1744396524003,0.9400867,83900.0,83899.0,0.11924811]
[1744396524311,0.8986467,83900.0,83899.0,0.11924811]
[1744396524513,0.77944,83900.0,83899.0,0.11924811]
[1744396524705,0.5378867,83900.0,83899.0,0.11924811]
[1744396524906,0.5378467,83900.0,83899.0,0.11924811]
[1744396525108,4e-05,83900.0,83899.0,0.11924811]
[1744396525302,0.11941407,83908.0,83907.0,0.1192367]
[1744396525604,0.00017877,83908.0,83907.0,0.1192367]
[1744396528709,0.00017877,83908.0,83907.0,0.1623367]
[1744396529615,5.401e-05,83920.0,83919.0,0.1192197]
[1744396530010,5.401e-05,83920.0,83919.0,0.2030197]
[1744396530407,0.11921,83926.0,83925.0,0.1192112]
[1744396530605,0.1192583,83920.0,83919.0,0.0838]
[1744396530811,0.1192583,83920.0,83919.0,0.2030197]
[1744396531917,0.4800583,83920.0,83919.0,0.0407]
[1744396532104,0.1192211,83918.0,83917.0,0.00017877]
[1744396532919,0.2012211,83918.0,83917.0,0.11940127]
[1744396535916,0.1192467,83900.0,83899.0,1e-08]
[1744396536114,0.1192467,83900.0,83899.0,0.11924811]
[1744396536115,0.4800467,83900.0,83899.0,0.11924811]
[1744396537727,0.5199467,83900.0,83899.0,0.20144811]
[1744396537913,0.00017877,83908.0,83902.0,0.0596215]
[1744396538222,0.1192198,83919.0,83918.0,0.1192211]
[1744396538416,0.0399,83924.0,83918.0,0.0596105]
[1744396538616,0.3608,83930.0,83929.0,0.1192055]
[1744396538818,0.1192006,83933.0,83925.0,0.1192103]
[1744396539017,0.0399,83938.0,83926.0,0.0822]
[1744396539222,0.1192056,83929.0,83926.0,0.0822]
[1744396539422,0.1192083,83927.0,83926.0,0.0822]
[1744396540013,0.1192483,83927.0,83926.0,0.05041766]
[1744396540413,0.5646483,83927.0,83926.0,0.05041766]
[1744396540613,0.5646483,83927.0,83921.0,0.00017877]
[1744396540614,0.1192154,83922.0,83921.0,0.00017877]
[1744396541021,0.2038154,83922.0,83921.0,0.00017877]
[1744396541516,0.2038154,83922.0,83921.0,0.00902487]
[1744396541716,0.2038154,83922.0,83921.0,0.00017877]
[1744396545624,0.2038154,83922.0,83921.0,0.009151]
[1744396545826,0.5646154,83922.0,83921.0,0.009151]
[1744396546524,0.5646154,83922.0,83921.0,0.00017877]
[1744396549328,0.4800154,83922.0,83921.0,0.00017877]
[1744396549525,0.4800154,83922.0,83921.0,0.08397877]
[1744396549727,0.36084,83927.0,83921.0,0.08397877]
[1744396549926,0.3608,83927.0,83924.0,0.0596061]
[1744396550127,0.1192097,83926.0,83925.0,0.0406]
[1744396552637,0.2047097,83926.0,83925.0,0.0406]
[1744396552837,0.1192154,83922.0,83921.0,0.00017877]
[1744396553227,0.2047154,83922.0,83921.0,0.00017877]
[1744396553931,0.2047154,83922.0,83921.0,0.04427877]
[1744396554130,0.2047154,83922.0,83921.0,0.00017877]
[1744396555132,0.2047154,83922.0,83921.0,0.04367877]
[1744396560334,0.059606,83925.0,83921.0,0.04367877]
[1744396560536,0.36084,83927.0,83926.0,0.1192097]
[1744396560926,0.059602,83931.0,83926.0,0.0407]
[1744396561132,0.1192483,83927.0,83926.0,0.0407]
[1744396561434,0.4800483,83927.0,83926.0,0.0407]
[1744396561630,0.5642483,83927.0,83926.0,0.0407]